[Event "Titled Tuesday Blitz August 22 Early 2023"]
[White "Zheng, Richard"]
[Black "Kaminski, Victor"]
[WhiteFideId "2624893"]
[BlackFideId "1131630"]
[WhiteElo "2570"]
[BlackElo "2261"]
[Result "1-0"]
[Round "1"]
[TimeControl "180+1"]
[Date "2023.08.22"]
[WhiteClock "0:00:06"]
[BlackClock "0:00:00"]
[Board "196"]

1. d4 {[%clk 0:02:59]}  Nf6 {[%clk 0:02:58]} 2. Bg5 {[%clk 0:02:58]}  c5 {[%clk 0:02:57]} 3. d5 {[%clk 0:02:59]}  e6 {[%clk 0:02:56]} 4. dxe6 {[%clk 0:02:57]}  fxe6 {[%clk 0:02:54]} 5. e3 {[%clk 0:02:44]}  d5 {[%clk 0:02:53]} 6. Nf3 {[%clk 0:02:43]}  Nc6 {[%clk 0:02:50]} 7. c4 {[%clk 0:02:42]}  Be7 {[%clk 0:02:39]} 8. Nbd2 {[%clk 0:02:39]}  O-O {[%clk 0:02:38]} 9. Be2 {[%clk 0:02:37]}  h6 {[%clk 0:02:29]} 10. Bh4 {[%clk 0:02:33]}  d4 {[%clk 0:02:25]} 11. exd4 {[%clk 0:02:31]}  cxd4 {[%clk 0:02:26]} 12. Bd3 {[%clk 0:02:20]}  e5 {[%clk 0:02:24]} 13. O-O {[%clk 0:02:16]}  Bg4 {[%clk 0:02:00]} 14. h3 {[%clk 0:02:11]}  Bh5 {[%clk 0:01:58]} 15. Qe1 {[%clk 0:01:55]}  Bd6 {[%clk 0:01:23]} 16. Bg3 {[%clk 0:01:35]}  Bb4 {[%clk 0:01:18]} 17. Nxe5 {[%clk 0:01:14]}  Nxe5 {[%clk 0:01:14]} 18. Bxe5 {[%clk 0:01:15]}  Re8 {[%clk 0:01:07]} 19. Bxf6 {[%clk 0:01:02]}  Qxf6 {[%clk 0:01:07]} 20. Ne4 {[%clk 0:00:58]}  Qf8 {[%clk 0:00:51]} 21. Qc1 {[%clk 0:00:54]}  Bg6 {[%clk 0:00:43]} 22. Qc2 {[%clk 0:00:52]}  Kh8 {[%clk 0:00:24]} 23. a3 {[%clk 0:00:50]}  Ba5 {[%clk 0:00:22]} 24. b4 {[%clk 0:00:48]}  Bc7 {[%clk 0:00:22]} 25. Nd2 {[%clk 0:00:35]}  Bh5 {[%clk 0:00:07]} 26. Ne4 {[%clk 0:00:20]}  Bg6 {[%clk 0:00:05]} 27. Ng3 {[%clk 0:00:19]}  Bf7 {[%clk 0:00:03]} 28. Rae1 {[%clk 0:00:18]}  Qd6 {[%clk 0:00:03]} 29. c5 {[%clk 0:00:16]}  Qf6 {[%clk 0:00:03]} 30. Bc4 {[%clk 0:00:11]}  Bg6 {[%clk 0:00:02]} 31. Bd3 {[%clk 0:00:11]}  Bf7 {[%clk 0:00:02]} 32. Re4 {[%clk 0:00:12]}  Bd5 {[%clk 0:00:02]} 33. Re2 {[%clk 0:00:11]}  Rxe2 {[%clk 0:00:02]} 34. Qxe2 {[%clk 0:00:10]}  Rf8 {[%clk 0:00:03]} 35. Ne4 {[%clk 0:00:09]}  Qe5 {[%clk 0:00:02]} 36. Ng3 {[%clk 0:00:08]}  Qf6 {[%clk 0:00:01]} 37. Nf5 {[%clk 0:00:06]}  Qg5 {[%clk 0:00:00]} 38. Ng3 {[%clk 0:00:06]} 1-0


[Site "https://www.chess.com"]

[Event "Titled Tuesday Blitz August 22 Early 2023"]
[White "Ai, Evan"]
[Black "Ismagilov, Damir"]
[WhiteFideId "2094770"]
[BlackFideId "34199982"]
[WhiteElo "2258"]
[BlackElo "2567"]
[Result "0-1"]
[Round "1"]
[TimeControl "180+1"]
[Date "2023.08.22"]
[WhiteClock "0:00:02"]
[BlackClock "0:00:23"]
[Board "197"]

1. e4 {[%clk 0:02:47]}  c5 {[%clk 0:02:59]} 2. Nf3 {[%clk 0:02:47]}  d6 {[%clk 0:02:59]} 3. d4 {[%clk 0:02:47]}  cxd4 {[%clk 0:03:00]} 4. Nxd4 {[%clk 0:02:47]}  Nf6 {[%clk 0:03:01]} 5. Nc3 {[%clk 0:02:47]}  a6 {[%clk 0:03:02]} 6. f3 {[%clk 0:02:47]}  e6 {[%clk 0:02:57]} 7. Be3 {[%clk 0:02:47]}  h5 {[%clk 0:02:56]} 8. Qd2 {[%clk 0:02:46]}  Be7 {[%clk 0:02:55]} 9. a4 {[%clk 0:02:45]}  Qc7 {[%clk 0:02:46]} 10. a5 {[%clk 0:02:43]}  Nbd7 {[%clk 0:02:43]} 11. Be2 {[%clk 0:02:41]}  b5 {[%clk 0:02:38]} 12. axb6 {[%clk 0:02:37]}  Nxb6 {[%clk 0:02:38]} 13. O-O {[%clk 0:02:33]}  Bb7 {[%clk 0:02:36]} 14. b3 {[%clk 0:02:26]}  O-O {[%clk 0:02:27]} 15. Na4 {[%clk 0:02:22]}  Nxa4 {[%clk 0:02:20]} 16. Rxa4 {[%clk 0:02:22]}  d5 {[%clk 0:02:20]} 17. e5 {[%clk 0:02:16]}  Nd7 {[%clk 0:02:14]} 18. f4 {[%clk 0:02:16]}  Nc5 {[%clk 0:02:12]} 19. Raa1 {[%clk 0:01:53]}  Ne4 {[%clk 0:02:10]} 20. Qe1 {[%clk 0:01:51]}  h4 {[%clk 0:02:05]} 21. Bf3 {[%clk 0:01:46]}  a5 {[%clk 0:01:45]} 22. Bxe4 {[%clk 0:01:30]}  dxe4 {[%clk 0:01:46]} 23. Ra4 {[%clk 0:01:29]}  Ba6 {[%clk 0:01:09]} 24. c4 {[%clk 0:01:21]}  Bb7 {[%clk 0:01:04]} 25. Nb5 {[%clk 0:00:59]}  Qd8 {[%clk 0:01:04]} 26. Qe2 {[%clk 0:00:55]}  Qd3 {[%clk 0:00:54]} 27. Qxd3 {[%clk 0:00:52]}  exd3 {[%clk 0:00:55]} 28. Rd1 {[%clk 0:00:52]}  Be4 {[%clk 0:00:51]} 29. Bd2 {[%clk 0:00:50]}  Bc5+ {[%clk 0:00:46]} 30. Kf1 {[%clk 0:00:46]}  f6 {[%clk 0:00:45]} 31. Nc7 {[%clk 0:00:33]}  h3 {[%clk 0:00:25]} 32. gxh3 {[%clk 0:00:18]}  Bf3 {[%clk 0:00:23]} 33. Re1 {[%clk 0:00:11]}  Be2+ {[%clk 0:00:23]} 34. Kg2 {[%clk 0:00:11]}  fxe5 {[%clk 0:00:23]} 35. Nxa8 {[%clk 0:00:10]}  exf4 {[%clk 0:00:23]} 36. Bxf4 {[%clk 0:00:05]}  Rxf4 {[%clk 0:00:24]} 37. Rxa5 {[%clk 0:00:05]}  Bb4 {[%clk 0:00:22]} 38. Raa1 {[%clk 0:00:02]}  Bxe1 {[%clk 0:00:22]} 39. Rxe1 {[%clk 0:00:02]}  d2 {[%clk 0:00:23]} 0-1


[Site "https://www.chess.com"]

[Event "Titled Tuesday Blitz August 22 Early 2023"]
[White "Yurovskykh, Oleksandr"]
[Black "Fajdetic, Hrvoje"]
[WhiteFideId "14134020"]
[BlackFideId "14501945"]
[WhiteElo "2566"]
[BlackElo "2258"]
[Result "1-0"]
[Round "1"]
[TimeControl "180+1"]
[Date "2023.08.22"]
[WhiteClock "0:00:53"]
[BlackClock "0:00:01"]
[Board "198"]

1. d4 {[%clk 0:02:52]}  e6 {[%clk 0:02:59]} 2. Nf3 {[%clk 0:02:51]}  f5 {[%clk 0:02:59]} 3. Bf4 {[%clk 0:02:50]}  Nf6 {[%clk 0:02:56]} 4. e3 {[%clk 0:02:50]}  d6 {[%clk 0:02:56]} 5. h3 {[%clk 0:02:49]}  Be7 {[%clk 0:02:56]} 6. Be2 {[%clk 0:02:45]}  Nc6 {[%clk 0:02:55]} 7. O-O {[%clk 0:02:37]}  O-O {[%clk 0:02:55]} 8. c4 {[%clk 0:02:36]}  Qe8 {[%clk 0:02:53]} 9. Nc3 {[%clk 0:02:36]}  Ne4 {[%clk 0:02:46]} 10. Qc2 {[%clk 0:02:33]}  Nxc3 {[%clk 0:02:45]} 11. Qxc3 {[%clk 0:02:34]}  Bf6 {[%clk 0:02:45]} 12. Bh2 {[%clk 0:02:22]}  e5 {[%clk 0:02:45]} 13. Rfe1 {[%clk 0:02:16]}  e4 {[%clk 0:02:39]} 14. Nd2 {[%clk 0:02:13]}  a5 {[%clk 0:02:39]} 15. b3 {[%clk 0:02:12]}  Qg6 {[%clk 0:02:34]} 16. Kh1 {[%clk 0:02:08]}  Bh4 {[%clk 0:02:07]} 17. Rf1 {[%clk 0:02:03]}  Bf6 {[%clk 0:01:49]} 18. Bf4 {[%clk 0:02:01]}  Qf7 {[%clk 0:01:43]} 19. a3 {[%clk 0:02:00]}  g5 {[%clk 0:01:42]} 20. Bh2 {[%clk 0:02:00]}  Qg6 {[%clk 0:01:38]} 21. b4 {[%clk 0:01:57]}  Bd7 {[%clk 0:01:26]} 22. b5 {[%clk 0:01:56]}  Ne7 {[%clk 0:01:21]} 23. c5 {[%clk 0:01:53]}  Rac8 {[%clk 0:01:12]} 24. cxd6 {[%clk 0:01:44]}  cxd6 {[%clk 0:01:11]} 25. Qxa5 {[%clk 0:01:45]}  Bg7 {[%clk 0:01:04]} 26. Rac1 {[%clk 0:01:41]}  Kh8 {[%clk 0:01:03]} 27. Qb6 {[%clk 0:01:37]}  f4 {[%clk 0:00:59]} 28. Qxb7 {[%clk 0:01:28]}  Rxc1 {[%clk 0:00:52]} 29. Rxc1 {[%clk 0:01:28]}  fxe3 {[%clk 0:00:50]} 30. fxe3 {[%clk 0:01:20]}  Rd8 {[%clk 0:00:36]} 31. Rc7 {[%clk 0:01:04]}  Qf5 {[%clk 0:00:18]} 32. Bg4 {[%clk 0:00:59]}  Qf2 {[%clk 0:00:16]} 33. Rxd7 {[%clk 0:00:57]}  Rxd7 {[%clk 0:00:08]} 34. Qxd7 {[%clk 0:00:58]}  Ng8 {[%clk 0:00:01]} 35. Qe8 {[%clk 0:00:53]} 1-0


[Site "https://www.chess.com"]

[Event "Titled Tuesday Blitz August 22 Early 2023"]
[White "Schut, Han"]
[Black "Goltseva, Ekaterina"]
[WhiteFideId "1005561"]
[BlackFideId "24173770"]
[WhiteElo "2253"]
[BlackElo "2564"]
[Result "0-1"]
[Round "1"]
[TimeControl "180+1"]
[Date "2023.08.22"]
[WhiteClock "0:00:30"]
[BlackClock "0:00:44"]
[Board "201"]

1. e4 {[%clk 0:02:59]}  e6 {[%clk 0:02:50]} 2. d4 {[%clk 0:02:59]}  d5 {[%clk 0:02:48]} 3. e5 {[%clk 0:03:00]}  c5 {[%clk 0:02:48]} 4. c3 {[%clk 0:03:00]}  Qa5 {[%clk 0:02:49]} 5. Qd2 {[%clk 0:02:49]}  Nc6 {[%clk 0:02:46]} 6. Nf3 {[%clk 0:02:43]}  cxd4 {[%clk 0:02:43]} 7. cxd4 {[%clk 0:02:43]}  Bb4 {[%clk 0:02:42]} 8. Nc3 {[%clk 0:02:42]}  Nh6 {[%clk 0:02:30]} 9. Bd3 {[%clk 0:02:41]}  Nf5 {[%clk 0:02:28]} 10. Bxf5 {[%clk 0:02:40]}  exf5 {[%clk 0:02:27]} 11. O-O {[%clk 0:02:37]}  Be6 {[%clk 0:02:25]} 12. Qg5 {[%clk 0:02:35]}  Be7 {[%clk 0:01:59]} 13. Qxg7 {[%clk 0:02:16]}  O-O-O {[%clk 0:01:58]} 14. Qh6 {[%clk 0:01:59]}  Rhg8 {[%clk 0:01:54]} 15. a3 {[%clk 0:01:45]}  Qb6 {[%clk 0:01:54]} 16. Qd2 {[%clk 0:01:39]}  Rg4 {[%clk 0:01:46]} 17. h3 {[%clk 0:01:31]}  Re4 {[%clk 0:01:34]} 18. Nxe4 {[%clk 0:01:17]}  dxe4 {[%clk 0:01:34]} 19. Ng5 {[%clk 0:01:11]}  Nxd4 {[%clk 0:01:24]} 20. Qe3 {[%clk 0:01:07]}  f4 {[%clk 0:01:12]} 21. Qc3+ {[%clk 0:01:06]}  Kb8 {[%clk 0:01:09]} 22. Kh1 {[%clk 0:00:52]}  Bxg5 {[%clk 0:01:08]} 23. g4 {[%clk 0:00:43]}  h5 {[%clk 0:01:02]} 24. gxh5 {[%clk 0:00:36]}  Rh8 {[%clk 0:01:00]} 25. Rg1 {[%clk 0:00:35]}  Rxh5 {[%clk 0:00:56]} 26. Rxg5 {[%clk 0:00:35]}  Rxh3+ {[%clk 0:00:45]} 27. Kg1 {[%clk 0:00:34]}  Rxc3 {[%clk 0:00:44]} 28. bxc3 {[%clk 0:00:30]}  Nf3+ {[%clk 0:00:44]} 0-1


[Site "https://www.chess.com"]

[Event "Titled Tuesday Blitz August 22 Early 2023"]
[White "Shukhman, Anna"]
[Black "Zaichenko, Daria"]
[WhiteFideId "54180058"]
[BlackFideId "4197453"]
[WhiteElo "2563"]
[BlackElo "2252"]
[Result "1-0"]
[Round "1"]
[TimeControl "180+1"]
[Date "2023.08.22"]
[WhiteClock "0:02:22"]
[BlackClock "0:00:16"]
[Board "202"]

1. e4 {[%clk 0:03:00]}  c5 {[%clk 0:02:57]} 2. Nf3 {[%clk 0:02:50]}  Nc6 {[%clk 0:02:57]} 3. Bb5 {[%clk 0:02:50]}  g6 {[%clk 0:02:55]} 4. O-O {[%clk 0:02:50]}  Bg7 {[%clk 0:02:55]} 5. c3 {[%clk 0:02:48]}  Nf6 {[%clk 0:02:46]} 6. Re1 {[%clk 0:02:47]}  O-O {[%clk 0:02:45]} 7. h3 {[%clk 0:02:47]}  Ne8 {[%clk 0:02:41]} 8. d4 {[%clk 0:02:47]}  cxd4 {[%clk 0:02:41]} 9. cxd4 {[%clk 0:02:48]}  Nc7 {[%clk 0:02:41]} 10. Bxc6 {[%clk 0:02:47]}  dxc6 {[%clk 0:02:39]} 11. Nc3 {[%clk 0:02:48]}  Be6 {[%clk 0:02:28]} 12. Bf4 {[%clk 0:02:47]}  Bc4 {[%clk 0:02:21]} 13. Qd2 {[%clk 0:02:45]}  Ne6 {[%clk 0:02:13]} 14. Be3 {[%clk 0:02:44]}  Qd7 {[%clk 0:02:07]} 15. b3 {[%clk 0:02:44]}  Ba6 {[%clk 0:02:07]} 16. Rad1 {[%clk 0:02:44]}  Rad8 {[%clk 0:02:07]} 17. d5 {[%clk 0:02:44]}  cxd5 {[%clk 0:02:06]} 18. exd5 {[%clk 0:02:45]}  Nc7 {[%clk 0:02:02]} 19. Bd4 {[%clk 0:02:44]}  f6 {[%clk 0:01:52]} 20. Bxa7 {[%clk 0:02:40]}  b5 {[%clk 0:01:37]} 21. Bb6 {[%clk 0:02:39]}  b4 {[%clk 0:01:30]} 22. Na4 {[%clk 0:02:35]}  Qd6 {[%clk 0:01:17]} 23. Bc5 {[%clk 0:02:28]}  Qxd5 {[%clk 0:01:12]} 24. Bxe7 {[%clk 0:02:28]}  Qxd2 {[%clk 0:01:11]} 25. Nxd2 {[%clk 0:02:29]}  Rd5 {[%clk 0:00:53]} 26. Bxf8 {[%clk 0:02:28]}  Kxf8 {[%clk 0:00:52]} 27. Ne4 {[%clk 0:02:27]}  Rxd1 {[%clk 0:00:49]} 28. Rxd1 {[%clk 0:02:28]}  f5 {[%clk 0:00:47]} 29. Nec5 {[%clk 0:02:27]}  Be2 {[%clk 0:00:44]} 30. Rd7 {[%clk 0:02:27]}  Be5 {[%clk 0:00:33]} 31. Rxc7 {[%clk 0:02:26]}  Bxc7 {[%clk 0:00:32]} 32. Ne6+ {[%clk 0:02:27]}  Ke7 {[%clk 0:00:31]} 33. Nxc7 {[%clk 0:02:27]}  Kd6 {[%clk 0:00:31]} 34. Na8 {[%clk 0:02:26]}  Kd5 {[%clk 0:00:27]} 35. f3 {[%clk 0:02:24]}  Kd4 {[%clk 0:00:26]} 36. Kf2 {[%clk 0:02:24]}  Bb5 {[%clk 0:00:26]} 37. Nc7 {[%clk 0:02:24]}  Bxa4 {[%clk 0:00:18]} 38. bxa4 {[%clk 0:02:24]}  Kc3 {[%clk 0:00:18]} 39. Na6 {[%clk 0:02:21]}  Kb2 {[%clk 0:00:16]} 40. Nxb4 {[%clk 0:02:21]}  Ka3 {[%clk 0:00:17]} 41. a5 {[%clk 0:02:21]}  Kxb4 {[%clk 0:00:16]} 42. a6 {[%clk 0:02:22]} 1-0


[Site "https://www.chess.com"]

[Event "Titled Tuesday Blitz August 22 Early 2023"]
[White "Sarkar, Justin"]
[Black "Siniauski, Artsiom"]
[WhiteFideId "2010011"]
[BlackFideId "13512269"]
[WhiteElo "2243"]
[BlackElo "2560"]
[Result "0-1"]
[Round "1"]
[TimeControl "180+1"]
[Date "2023.08.22"]
[WhiteClock "0:00:00"]
[BlackClock "0:00:33"]
[Board "205"]

1. d4 {[%clk 0:02:29]}  Nf6 {[%clk 0:02:59]} 2. c4 {[%clk 0:02:28]}  e6 {[%clk 0:02:59]} 3. Nf3 {[%clk 0:02:24]}  b6 {[%clk 0:02:55]} 4. g3 {[%clk 0:02:20]}  Bb4+ {[%clk 0:02:51]} 5. Bd2 {[%clk 0:02:14]}  Be7 {[%clk 0:02:51]} 6. Bg2 {[%clk 0:02:09]}  c6 {[%clk 0:02:51]} 7. O-O {[%clk 0:02:04]}  O-O {[%clk 0:02:51]} 8. Qc2 {[%clk 0:01:57]}  d5 {[%clk 0:02:50]} 9. Ne5 {[%clk 0:01:55]}  Bb7 {[%clk 0:02:48]} 10. Rd1 {[%clk 0:01:33]}  Nfd7 {[%clk 0:02:44]} 11. Nc3 {[%clk 0:01:04]}  Nxe5 {[%clk 0:02:36]} 12. dxe5 {[%clk 0:01:04]}  Qc7 {[%clk 0:02:32]} 13. cxd5 {[%clk 0:00:30]}  cxd5 {[%clk 0:02:31]} 14. Rac1 {[%clk 0:00:29]}  Qxe5 {[%clk 0:02:20]} 15. Bf4 {[%clk 0:00:28]}  Qf6 {[%clk 0:02:17]} 16. e4 {[%clk 0:00:26]}  Nc6 {[%clk 0:01:45]} 17. exd5 {[%clk 0:00:19]}  Nb4 {[%clk 0:01:43]} 18. Qb3 {[%clk 0:00:17]}  Nxd5 {[%clk 0:01:36]} 19. Nxd5 {[%clk 0:00:16]}  Bxd5 {[%clk 0:01:35]} 20. Bxd5 {[%clk 0:00:15]}  exd5 {[%clk 0:01:36]} 21. Rxd5 {[%clk 0:00:15]}  Bc5 {[%clk 0:01:26]} 22. Be3 {[%clk 0:00:09]}  Bxe3 {[%clk 0:01:12]} 23. fxe3 {[%clk 0:00:09]}  Rac8 {[%clk 0:01:05]} 24. Rxc8 {[%clk 0:00:09]}  Rxc8 {[%clk 0:01:06]} 25. Qd3 {[%clk 0:00:09]}  g6 {[%clk 0:00:58]} 26. Rd6 {[%clk 0:00:05]}  Qxb2 {[%clk 0:00:44]} 27. Rd8+ {[%clk 0:00:05]}  Rxd8 {[%clk 0:00:44]} 28. Qxd8+ {[%clk 0:00:05]}  Kg7 {[%clk 0:00:45]} 29. Qe7 {[%clk 0:00:05]}  Qa1+ {[%clk 0:00:43]} 30. Kg2 {[%clk 0:00:05]}  Qxa2+ {[%clk 0:00:43]} 31. Kg1 {[%clk 0:00:03]}  Qb1+ {[%clk 0:00:40]} 32. Kg2 {[%clk 0:00:03]}  Qb2+ {[%clk 0:00:41]} 33. Kg1 {[%clk 0:00:03]}  a5 {[%clk 0:00:42]} 34. e4 {[%clk 0:00:02]}  Qf6 {[%clk 0:00:34]} 35. Qc7 {[%clk 0:00:00]}  a4 {[%clk 0:00:33]} 0-1


[Site "https://www.chess.com"]

[Event "Titled Tuesday Blitz August 22 Early 2023"]
[White "Moral Garcia, Serafin"]
[Black "Acosta Cruz, Oscar Yosimar"]
[WhiteFideId "2201925"]
[BlackFideId "5111269"]
[WhiteElo "2560"]
[BlackElo "2243"]
[Result "0-1"]
[Round "1"]
[TimeControl "180+1"]
[Date "2023.08.22"]
[WhiteClock "0:00:16"]
[BlackClock "0:00:05"]
[Board "206"]

1. c4 {[%clk 0:03:00]}  e5 {[%clk 0:02:55]} 2. g3 {[%clk 0:03:00]}  Nf6 {[%clk 0:02:51]} 3. Bg2 {[%clk 0:02:59]}  c6 {[%clk 0:02:49]} 4. Nf3 {[%clk 0:02:58]}  e4 {[%clk 0:02:47]} 5. Nd4 {[%clk 0:02:57]}  d5 {[%clk 0:02:45]} 6. cxd5 {[%clk 0:02:55]}  Qxd5 {[%clk 0:02:45]} 7. Nc2 {[%clk 0:02:55]}  Qh5 {[%clk 0:02:38]} 8. h3 {[%clk 0:02:38]}  Bc5 {[%clk 0:02:36]} 9. Nc3 {[%clk 0:02:34]}  O-O {[%clk 0:02:34]} 10. Nxe4 {[%clk 0:02:28]}  Nxe4 {[%clk 0:02:33]} 11. Bxe4 {[%clk 0:02:28]}  Re8 {[%clk 0:02:34]} 12. Bg2 {[%clk 0:02:18]}  Bb6 {[%clk 0:02:10]} 13. d4 {[%clk 0:02:10]}  Bf5 {[%clk 0:02:04]} 14. e3 {[%clk 0:02:05]}  Qg6 {[%clk 0:01:59]} 15. Na3 {[%clk 0:02:02]}  Bd3 {[%clk 0:01:48]} 16. b3 {[%clk 0:01:55]}  Bxd4 {[%clk 0:01:43]} 17. Bd2 {[%clk 0:01:37]}  Bxa1 {[%clk 0:01:41]} 18. Qxa1 {[%clk 0:01:37]}  Nd7 {[%clk 0:01:41]} 19. Qd4 {[%clk 0:01:23]}  Rad8 {[%clk 0:01:39]} 20. Qxa7 {[%clk 0:01:23]}  Ne5 {[%clk 0:01:35]} 21. Qc5 {[%clk 0:01:15]}  h5 {[%clk 0:01:21]} 22. Bc3 {[%clk 0:01:11]}  Qd6 {[%clk 0:01:16]} 23. Qxd6 {[%clk 0:00:59]}  Rxd6 {[%clk 0:01:17]} 24. f4 {[%clk 0:00:52]}  Ng6 {[%clk 0:01:08]} 25. Kf2 {[%clk 0:00:52]}  Ba6 {[%clk 0:01:02]} 26. Rc1 {[%clk 0:00:36]}  Rd3 {[%clk 0:00:50]} 27. f5 {[%clk 0:00:19]}  Ne5 {[%clk 0:00:43]} 28. Bf1 {[%clk 0:00:18]}  Rd5 {[%clk 0:00:31]} 29. Bxa6 {[%clk 0:00:17]}  bxa6 {[%clk 0:00:32]} 30. Ke2 {[%clk 0:00:18]}  Nd7 {[%clk 0:00:20]} 31. Bb2 {[%clk 0:00:17]}  Rxf5 {[%clk 0:00:19]} 32. Rxc6 {[%clk 0:00:17]}  Ne5 {[%clk 0:00:19]} 33. Rxa6 {[%clk 0:00:16]}  Nf3 {[%clk 0:00:17]} 34. Nc4 {[%clk 0:00:15]}  Ng5 {[%clk 0:00:16]} 35. h4 {[%clk 0:00:15]}  Ne4 {[%clk 0:00:16]} 36. b4 {[%clk 0:00:14]}  Nxg3+ {[%clk 0:00:14]} 37. Kd3 {[%clk 0:00:15]}  Rd5+ {[%clk 0:00:10]} 38. Kc3 {[%clk 0:00:15]}  Nf5 {[%clk 0:00:09]} 39. a4 {[%clk 0:00:13]}  Nxe3 {[%clk 0:00:09]} 40. Nxe3 {[%clk 0:00:13]}  Rxe3+ {[%clk 0:00:09]} 41. Kc4 {[%clk 0:00:14]}  Rd7 {[%clk 0:00:07]} 42. Bd4 {[%clk 0:00:14]}  Re4 {[%clk 0:00:07]} 43. Ra8+ {[%clk 0:00:14]}  Kh7 {[%clk 0:00:07]} 44. b5 {[%clk 0:00:15]}  Rexd4+ {[%clk 0:00:07]} 45. Kc5 {[%clk 0:00:15]}  f5 {[%clk 0:00:07]} 46. a5 {[%clk 0:00:15]}  f4 {[%clk 0:00:08]} 47. b6 {[%clk 0:00:16]}  R4d5+ {[%clk 0:00:06]} 48. Kc6 {[%clk 0:00:14]}  R5d6+ {[%clk 0:00:07]} 49. Kc5 {[%clk 0:00:15]}  Rd8 {[%clk 0:00:03]} 50. Rxd8 {[%clk 0:00:13]}  Rxd8 {[%clk 0:00:03]} 51. a6 {[%clk 0:00:14]}  f3 {[%clk 0:00:03]} 52. a7 {[%clk 0:00:15]}  f2 {[%clk 0:00:03]} 53. b7 {[%clk 0:00:15]}  f1=Q {[%clk 0:00:03]} 54. b8=Q {[%clk 0:00:16]}  Qc1+ {[%clk 0:00:03]} 55. Kb6 {[%clk 0:00:15]}  Qb2+ {[%clk 0:00:03]} 56. Kc7 {[%clk 0:00:16]}  Rxb8 {[%clk 0:00:03]} 57. axb8=Q {[%clk 0:00:16]}  Qxb8+ {[%clk 0:00:04]} 58. Kxb8 {[%clk 0:00:17]}  g5 {[%clk 0:00:04]} 59. hxg5 {[%clk 0:00:16]}  h4 {[%clk 0:00:05]} 0-1


[Site "https://www.chess.com"]

[Event "Titled Tuesday Blitz August 22 Early 2023"]
[White "Martinez Reyes, Pedro Ramon"]
[Black "Liu, Leonardo"]
[WhiteFideId "3901807"]
[BlackFideId "30965780"]
[WhiteElo "2559"]
[BlackElo "2234"]
[Result "0-1"]
[Round "1"]
[TimeControl "180+1"]
[Date "2023.08.22"]
[WhiteClock "0:00:13"]
[BlackClock "0:00:07"]
[Board "208"]

1. d4 {[%clk 0:02:58]}  Nf6 {[%clk 0:02:59]} 2. c4 {[%clk 0:02:58]}  g6 {[%clk 0:03:00]} 3. Nc3 {[%clk 0:02:58]}  Bg7 {[%clk 0:03:00]} 4. e4 {[%clk 0:02:57]}  d6 {[%clk 0:02:59]} 5. Bd3 {[%clk 0:02:56]}  O-O {[%clk 0:03:00]} 6. Nge2 {[%clk 0:02:55]}  e5 {[%clk 0:02:58]} 7. d5 {[%clk 0:02:49]}  Nbd7 {[%clk 0:02:57]} 8. f3 {[%clk 0:02:48]}  Nc5 {[%clk 0:02:54]} 9. Bc2 {[%clk 0:02:47]}  a5 {[%clk 0:02:51]} 10. Be3 {[%clk 0:02:46]}  Nfd7 {[%clk 0:02:49]} 11. g4 {[%clk 0:02:42]}  Kh8 {[%clk 0:02:35]} 12. h4 {[%clk 0:02:09]}  Nb6 {[%clk 0:02:26]} 13. b3 {[%clk 0:02:05]}  f5 {[%clk 0:02:21]} 14. h5 {[%clk 0:02:03]}  f4 {[%clk 0:02:20]} 15. Bxc5 {[%clk 0:02:03]}  dxc5 {[%clk 0:02:15]} 16. hxg6 {[%clk 0:02:03]}  h6 {[%clk 0:02:12]} 17. Nb5 {[%clk 0:02:01]}  Bd7 {[%clk 0:02:08]} 18. Nec3 {[%clk 0:01:52]}  Rf6 {[%clk 0:02:02]} 19. Qe2 {[%clk 0:01:51]}  Rxg6 {[%clk 0:01:54]} 20. a4 {[%clk 0:01:51]}  c6 {[%clk 0:01:51]} 21. Na3 {[%clk 0:01:47]}  cxd5 {[%clk 0:01:51]} 22. exd5 {[%clk 0:01:46]}  e4 {[%clk 0:01:45]} 23. Qd2 {[%clk 0:01:11]}  Qf6 {[%clk 0:01:18]} 24. Nab1 {[%clk 0:01:10]}  Re8 {[%clk 0:01:01]} 25. Bxe4 {[%clk 0:01:05]}  Bxg4 {[%clk 0:01:01]} 26. Kf2 {[%clk 0:01:05]}  Bf5 {[%clk 0:00:55]} 27. Ra2 {[%clk 0:00:58]}  Qg5 {[%clk 0:00:42]} 28. Kf1 {[%clk 0:00:58]}  Bh3+ {[%clk 0:00:36]} 29. Ke1 {[%clk 0:00:39]}  Qg3+ {[%clk 0:00:29]} 30. Qf2 {[%clk 0:00:33]}  Bd4 {[%clk 0:00:21]} 31. Qxg3 {[%clk 0:00:33]}  Rxg3 {[%clk 0:00:22]} 32. Rah2 {[%clk 0:00:30]}  Rxf3 {[%clk 0:00:14]} 33. Rxh3 {[%clk 0:00:27]}  Bxc3+ {[%clk 0:00:15]} 34. Nxc3 {[%clk 0:00:27]}  Rxc3 {[%clk 0:00:15]} 35. Rxh6+ {[%clk 0:00:22]}  Kg7 {[%clk 0:00:14]} 36. Rg6+ {[%clk 0:00:20]}  Kf7 {[%clk 0:00:12]} 37. Rh7+ {[%clk 0:00:20]}  Kf8 {[%clk 0:00:13]} 38. Kd2 {[%clk 0:00:13]}  Rxb3 {[%clk 0:00:06]} 39. Rh8+ {[%clk 0:00:12]}  Kf7 {[%clk 0:00:06]} 40. Rxe8 {[%clk 0:00:13]}  Kxe8 {[%clk 0:00:06]} 41. Re6+ {[%clk 0:00:13]}  Kd7 {[%clk 0:00:06]} 42. Bd3 {[%clk 0:00:13]}  Rb2+ {[%clk 0:00:07]} 43. Kc3 {[%clk 0:00:13]}  Nxa4# {[%clk 0:00:07]} 0-1


[Site "https://www.chess.com"]